bitfinex-derivatives/quotes_ETHF0:USTF0_20251012
["timestamp","ask_amount","ask_price","bid_price","bid_amount"]
[1760310955279,0.8011,4114.9,4114.1,3.2078]
[1760310955577,0.8011,4114.9,4113.7,0.43716]
[1760310955578,3.1880283,4114.8,4113.7,0.43716]
[1760310955769,3.1880283,4114.8,4114.1,3.64492]
[1760310955968,3.79568513,4115.8,4114.0,0.3298]
[1760310955969,3.2078,4115.6,4114.7,3.2078]
[1760310956169,3.21065457,4115.6,4114.7,3.20964328]
[1760310956374,40.8,4115.5,4114.7,3.20964328]
[1760310956778,40.8,4115.5,4115.2,3.2078]
[1760310956975,40.8,4115.5,4114.7,0.00184328]
[1760310956976,0.43699,4115.3,4114.7,3.20964328]
[1760310957170,0.43703,4115.0,4114.7,4.01634328]
[1760310957375,3.08983075,4115.4,4114.7,0.00184328]
[1760310957376,0.43705,4114.9,4114.7,0.00184328]
[1760310957570,1.23815,4114.9,4114.7,0.00184328]
[1760310957775,0.8011,4114.8,4114.7,0.00184328]
[1760310957976,0.43705,4114.9,4114.7,0.00184328]
[1760310958578,0.43705,4114.9,4114.7,0.80854328]
[1760310959777,0.48705,4114.9,4114.7,0.80854328]
[1760310960973,1.28815,4114.9,4114.7,0.00184328]
[1760310961173,0.05,4114.9,4114.8,0.8067]
[1760310961376,0.05,4114.9,4114.7,0.00184328]
[1760310961377,1.23815,4114.8,4114.7,0.00184328]
[1760310961577,1.23815,4114.8,4114.0,3.2078]
[1760310961777,0.43719,4113.5,4113.4,4.0145]
[1760310962087,3.79568513,4114.2,4113.4,4.0145]
[1760310962279,3.2078,4114.8,4114.0,1.1365]
[1760310962480,3.2078,4114.8,4114.2,0.8067]
[1760310962680,3.2078,4114.8,4114.2,0.43930579]
[1760310962885,3.2078,4114.8,4114.2,0.80890579]
[1760310962886,7.80458513,4114.8,4114.2,0.80890579]
[1760310963085,0.43709,4114.5,4114.2,0.80890579]
[1760310963675,1.2382,4114.4,4114.2,0.80890579]
[1760310964188,4.0089,4114.3,4114.2,0.00220579]
[1760310964686,7.1882072,4114.3,4114.2,0.00220579]
[1760310964989,0.8011,4113.5,4113.4,3.2078]
[1760310965875,4.23285513,4113.7,4113.4,4.01676796]
[1760310966189,44.0078,4114.3,4113.6,0.8067]
[1760310966389,0.43712,4114.2,4113.6,0.8067]
[1760310966595,44.0078,4114.3,4113.6,0.8067]
[1760310966596,44.0078,4114.3,4113.7,0.43715]
[1760310966782,40.8,4114.3,4113.7,0.43715]
[1760310967088,41.6011,4114.3,4114.0,4.0145]
[1760310967285,0.43712,4114.1,4114.0,3.2078]
[1760310967586,41.6011,4114.3,4113.4,0.00226796]
[1760310967587,1.23827,4113.6,4113.4,3.21006796]
[1760310967787,1.23827,4113.6,4113.4,4.01676796]
[1760310967989,0.43717,4113.6,4113.4,3.21006796]
[1760310968189,1.23827,4113.6,4113.4,3.21006796]
[1760310968595,0.43716,4113.8,4113.5,0.8067]
[1760310968789,1.23827,4113.7,4113.4,3.21006796]
[1760310968992,0.43715,4113.9,4113.4,3.64725796]
[1760310969286,1.23826,4113.8,4113.5,0.8067]
[1760310969479,0.43717,4113.7,4113.5,0.8067]
[1760310969991,0.8011,4113.8,4113.5,0.8067]
[1760310970689,0.43716,4113.8,4113.5,0.8067]
[1760310970889,0.8011,4113.7,4113.4,4.01676796]
[1760310971294,0.8011,4113.7,4113.5,1.24388]
[1760310971587,1.23827,4113.7,4113.5,0.8067]
[1760310971787,3.79568513,4114.0,4113.5,0.8067]
[1760310972288,3.79568513,4114.0,4113.4,3.21006796]
[1760310972289,1.1358,4113.5,4113.4,3.21006796]
[1760310972593,1.1358,4113.5,4113.4,0.00226796]
[1760310972986,41.9358,4113.5,4113.4,0.00226796]
[1760310973186,42.62783519,4113.5,4113.4,0.00226796]
[1760310973586,42.29313519,4113.5,4113.4,0.00226796]
[1760310974284,42.62783519,4113.5,4113.4,0.00226796]
[1760310974485,46.42352032,4113.5,4113.4,0.00226796]
[1760310974690,49.63132032,4113.5,4113.4,0.00226796]
[1760310975193,52.82320811,4113.5,4113.4,0.00226796]
[1760310975383,49.88891154,4113.5,4113.4,0.00226796]
[1760310975593,0.20707106,4113.5,4113.4,0.80896796]
[1760310975891,0.86138856,4114.6,4113.6,0.8067]
[1760310976183,0.86138856,4114.6,4113.4,3.21006796]
[1760310976184,3.79568513,4113.8,4113.4,3.21006796]
[1760310976493,1.1358,4113.5,4113.4,0.00226796]
[1760310978697,2.42480318,4113.5,4113.4,0.00226796]
[1760310978894,43.22480318,4113.5,4113.4,0.00226796]
[1760310979988,41.6011,4113.5,4113.4,0.43946796]
[1760310980191,0.85732186,4113.5,4113.4,1.24616796]
[1760310981294,0.85732186,4113.8,4113.6,0.43717]
[1760310981493,0.85732186,4113.8,4113.5,0.3298]
[1760310981494,0.85732186,4113.9,4113.5,0.3298]
[1760310981689,4.65300699,4113.6,4113.4,3.21006796]
[1760310981895,1.1248,4113.5,4113.4,0.00226796]
[1760310982090,1.98212186,4113.5,4113.4,0.00226796]
[1760310982597,0.85732186,4113.5,4113.4,4.01126796]
[1760310983103,1.28900318,4113.6,4113.5,0.43718]
[1760310983301,1.28900318,4113.6,4113.5,1.23838]
[1760310983492,1.28900318,4113.7,4113.6,0.8012]
[1760310983893,2.10170318,4113.7,4113.6,0.8012]
[1760310984088,0.8127,4113.7,4113.6,0.8012]
[1760310984395,1.72343196,4114.2,4114.1,0.43712]
[1760310984596,0.8127,4114.2,4114.1,3.64492]
[1760310985197,40.8,4114.3,4114.1,2.33376802]
[1760310985401,40.8,4114.3,4114.2,0.8012]
[1760310986498,42.52317066,4114.3,4114.2,0.8012]
[1760310987100,40.8,4114.3,4114.2,0.8012]
[1760310987704,41.48881445,4114.3,4114.2,0.8012]
[1760310988208,0.68881445,4114.3,4114.2,0.8012]
[1760310988505,0.86243832,4114.4,4114.3,1.2383]
[1760310988706,0.32102048,4114.4,4114.3,1.2383]
[1760310988905,4.8e-07,4114.4,4114.3,1.2383]
[1760310989204,0.8127,4114.4,4114.3,0.43709]
[1760310989611,1.2932373,4114.5,4114.3,0.43709]
[1760310989899,1.3432373,4114.9,4114.7,0.43706]
[1760310990095,1.3432373,4114.9,4114.8,4.009]
[1760310990491,40.8,4116.0,4115.9,0.43693]
[1760310990696,3.2078,4116.6,4115.9,0.8012]
[1760310990896,1.1248,4116.5,4116.3,0.43688]
[1760310991107,0.8127,4116.4,4116.3,0.43688]
[1760310991307,41.6127,4116.4,4116.3,0.43688]
[1760310991501,41.61470481,4116.4,4116.3,0.43903761]
[1760310991804,41.61470481,4116.4,4116.3,0.00215761]
[1760310994404,0.81470481,4116.4,4116.3,0.80335761]
[1760310994906,0.00200481,4116.4,4116.3,0.80335761]
[1760310995800,0.00200481,4116.4,4116.3,4.01115761]
[1760310996003,3.2078,4117.6,4117.4,0.43677]
[1760310996205,3.2078,4117.6,4117.5,0.8012]
[1760310996900,3.2078,4117.6,4117.5,0.9757]
[1760310997100,3.20969697,4117.6,4117.5,0.9757]
[1760310997399,3.20969697,4117.6,4117.5,0.8012]
[1760310997400,0.00189697,4117.6,4117.5,0.8012]
[1760310998402,0.00189697,4117.6,4117.5,0.9757]
[1760310999409,0.00189697,4117.6,4117.5,0.8012]
[1760311001009,0.3121,4117.5,4117.1,3.2078]
[1760311001209,0.8127,4117.4,4117.2,1.23799]
[1760311001707,0.8127,4117.4,4117.1,3.2078]
[1760311001708,0.00189697,4117.6,4117.1,3.2078]
[1760311001908,0.8127,4117.5,4117.4,0.43677]
[1760311003302,0.00189697,4117.6,4117.5,0.8012]
[1760311003609,0.00189697,4117.6,4117.5,0.9757]
[1760311004600,3.9955,4118.7,4118.6,0.43664]
[1760311005011,44.7955,4118.7,4118.6,0.43664]
[1760311005712,3.99837585,4118.7,4118.6,0.43664]
[1760311005916,3.21067585,4118.7,4118.4,0.43666]
[1760311006212,0.3047,4118.5,4118.2,0.43668]
[1760311006414,0.7877,4117.9,4117.7,3.2078]
[1760311006607,0.7877,4117.8,4117.2,3.2078]
[1760311006906,4.58338513,4117.9,4117.2,3.64458]
[1760311007208,0.7877,4117.8,4117.4,0.43676]
[1760311007512,0.7877,4117.8,4117.6,0.43674]
[1760311007704,3.5125,4118.0,4117.6,0.43674]
[1760311008111,3.5125,4118.0,4117.2,3.2078]
[1760311008112,0.7877,4117.9,4117.2,3.2078]
[1760311008714,0.7877,4117.9,4117.5,0.43675]
[1760311009014,3.5125,4118.0,4117.5,0.43675]
[1760311009211,0.7877,4117.9,4117.5,0.43675]
[1760311009411,0.3047,4117.5,4117.2,3.2078]
[1760311009616,0.7877,4117.4,4116.7,3.2078]
[1760311010019,0.7877,4117.4,4117.3,0.43678]
[1760311010520,3.5125,4118.0,4117.5,0.43676]
[1760311010812,3.5125,4118.0,4117.4,0.43676]
[1760311010813,0.7877,4117.8,4117.4,0.43676]
[1760311011018,0.7877,4117.9,4117.5,0.43675]
[1760311011218,3.5125,4118.0,4117.6,0.43674]
[1760311011417,0.7744,4117.9,4117.6,0.43674]
[1760311012420,3.5125,4118.0,4117.6,0.43674]
[1760311012612,0.7744,4117.9,4117.6,0.43674]
[1760311012812,0.3191,4117.5,4117.3,0.43678]
[1760311013015,0.7744,4117.4,4117.3,0.43678]
[1760311013916,0.7744,4117.4,4117.3,3.64458]
[1760311014610,0.7744,4117.4,4117.3,0.43678]
[1760311015417,40.8,4117.7,4117.6,0.43675]
[1760311015418,41.5744,4117.7,4117.6,0.43675]
[1760311020728,1.0935,4117.5,4117.4,0.43676]
[1760311021322,41.5744,4117.7,4117.6,0.43675]
[1760311022616,0.3047,4118.5,4117.9,0.7738]
[1760311022925,0.3047,4118.5,4117.1,1.092]
[1760311022926,0.7744,4117.4,4117.2,0.43678]
[1760311023613,0.7744,4117.4,4117.1,3.2078]
[1760311023821,0.7744,4117.2,4117.0,0.43681]
[1760311024120,1.2112,4117.2,4117.0,0.43681]
[1760311024422,0.7744,4117.2,4117.0,0.43681]
[1760311024825,0.7744,4117.4,4117.2,0.43679]
[1760311026126,1.21118,4117.4,4117.0,0.43681]
[1760311026427,3.9822,4117.6,4117.4,1.21057]
[1760311026624,3.9822,4117.6,4116.9,2.18414]
[1760311026625,0.3191,4117.5,4117.1,3.6446]
[1760311026824,0.7744,4117.4,4117.1,3.6446]
[1760311027222,0.75586,4117.5,4117.1,3.6446]
[1760311027927,0.43678,4117.4,4117.1,3.64459]
[1760311028133,0.7744,4117.3,4117.2,0.43679]
[1760311028327,0.7744,4117.3,4117.2,1.21059]
[1760311028626,41.5744,4117.3,4117.2,0.43679]
[1760311029828,40.8,4117.3,4117.2,1.21059]
[1760311030130,3.9822,4117.6,4117.5,0.43676]
[1760311030532,44.7822,4117.6,4117.5,0.43676]
[1760311031333,0.7744,4117.4,4117.3,0.43677]
[1760311032435,0.7744,4117.4,4117.3,1.21057]
[1760311032632,44.7822,4117.6,4117.5,0.43676]
[1760311033029,3.2078,4118.6,4118.2,0.43668]
[1760311033228,3.9822,4118.6,4117.8,0.7738]
[1760311033428,3.2078,4118.6,4118.3,0.43667]
[1760311033630,41.5744,4118.4,4118.3,0.43667]
[1760311033829,0.7744,4118.4,4118.3,1.21047]
[1760311034237,0.00287585,4118.7,4118.6,0.7738]
[1760311034925,0.77727585,4118.7,4118.6,0.7738]
[1760311035732,0.7744,4118.6,4118.3,0.43667]
[1760311035934,0.7744,4118.4,4118.0,3.2078]
[1760311036235,1.0935,4118.0,4117.9,0.43672]
[1760311037030,1.0935,4118.0,4117.1,1.09201]
[1760311037031,0.3191,4117.5,4117.0,3.2078]
[1760311037234,0.3191,4117.5,4116.5,3.2078]
[1760311037235,0.7744,4116.9,4116.5,3.2078]
[1760311037540,40.8,4116.8,4116.5,3.2078]
[1760311037741,0.7744,4116.7,4116.6,0.43685]
[1760311041233,0.7744,4116.7,4116.5,3.2078]
[1760311041234,0.7744,4117.3,4117.2,0.43679]
[1760311041436,0.7744,4117.3,4117.2,1.21059]
[1760311041635,41.5744,4117.3,4117.2,0.43679]
[1760311041937,0.3092,4117.0,4116.7,0.43684]
[1760311042243,0.7456,4116.9,4116.5,3.2078]
[1760311042440,0.74602,4117.0,4116.5,3.2078]
[1760311042634,0.7456,4116.9,4116.5,3.2078]
[1760311043036,0.3092,4116.5,4116.3,0.00215761]
[1760311043237,0.7456,4116.4,4116.3,0.00215761]
[1760311043541,3.92762801,4116.4,4116.3,0.00215761]
[1760311043939,41.5456,4116.4,4116.3,0.00215761]
[1760311048837,0.7456,4116.8,4116.3,0.78025761]
[1760311049043,0.7456,4116.8,4116.7,0.43684]
[1760311049440,41.5456,4116.8,4116.7,0.43684]
[1760311050539,0.7456,4117.3,4117.2,0.43679]
[1760311050942,41.5456,4117.3,4117.2,0.43679]
[1760311051341,0.7456,4117.8,4117.7,0.43674]
[1760311052438,41.5456,4117.8,4117.7,0.43674]
[1760311057546,40.8,4117.8,4117.0,3.2078]
[1760311057738,0.7456,4117.4,4117.1,0.4368]
[1760311057944,0.3092,4117.5,4117.0,3.2078]
[1760311058152,0.7456,4117.4,4117.3,0.43678]
[1760311059755,40.8,4117.8,4117.7,0.43674]
[1760311060253,41.5456,4117.8,4117.7,0.43674]
[1760311065451,42.5731,4117.8,4117.7,0.43674]
[1760311067360,42.5731,4117.8,4116.8,2.1722669]
[1760311067361,1.802,4117.1,4116.6,2.1722669]
[1760311067555,1.0861,4116.5,4116.4,3.2078]
[1760311067858,1.0861,4116.5,4116.4,3.64468]
[1760311068053,1.52297,4116.5,4116.3,0.00215761]
[1760311068258,4.66291799,4116.5,4116.3,0.00215761]
[1760311069552,3.7985681,4116.4,4116.3,0.00215761]
[1760311069759,4.5730681,4116.4,4116.3,0.00215761]
[1760311070061,7.68103929,4116.4,4116.3,0.00215761]
[1760311070262,48.48103929,4116.4,4116.3,0.00215761]
[1760311070655,44.68247119,4116.4,4116.3,0.00215761]
[1760311071261,0.7745,4115.4,4115.3,3.64479]
[1760311071757,0.2966,4115.0,4114.9,0.43704]
[1760311072055,0.2966,4114.5,4114.4,0.43709]
[1760311072356,1.03702139,4114.5,4114.4,0.43908525]
[1760311073055,1.03702139,4114.5,4114.4,0.00199525]
[1760311073255,4.24482139,4114.5,4114.4,0.00199525]
[1760311074760,45.04482139,4114.5,4114.4,0.00199525]
[1760311075666,1.39e-06,4114.5,4114.4,0.75339525]
[1760311076070,0.3116,4116.0,4114.4,0.75339525]
[1760311076071,3.9457,4115.9,4115.5,1.09244]
[1760311076364,3.9457,4115.9,4115.8,0.43694]
[1760311076962,0.7379,4115.9,4115.8,0.43694]
[1760311077160,0.74100777,4115.9,4115.8,0.43694]
[1760311077557,0.74100777,4115.9,4115.5,0.43697]
[1760311077767,0.2966,4115.0,4114.9,3.2078]
[1760311077964,1.0345,4115.0,4114.9,3.2078]
[1760311078168,4.55886804,4115.0,4114.5,0.43707]
[1760311078364,41.5379,4114.9,4114.8,0.43704]
[1760311078670,41.5379,4114.9,4114.6,0.43706]
[1760311078965,41.5379,4114.9,4114.3,3.2078]
[1760311078966,1.0345,4114.5,4114.3,3.2078]
[1760311079169,1.0345,4114.5,4114.2,0.43711]
[1760311079363,1.0345,4114.5,4114.3,0.43709]
[1760311079766,41.8345,4114.5,4114.3,0.43709]
[1760311081076,41.8345,4114.5,4113.2,3.64501]
[1760311081077,0.2966,4113.5,4113.2,3.64501]
[1760311081370,0.2966,4113.5,4113.4,0.4372]
[1760311081371,1.0345,4113.5,4113.4,0.4372]
[1760311081671,0.2966,4113.0,4112.8,0.02431434]
[1760311081878,7.7442681,4112.9,4112.8,0.02431434]
[1760311082074,0.00254607,4112.9,4112.8,0.77798124]
[1760311082370,3.94824607,4112.9,4112.8,0.02658124]
[1760311082571,0.74044607,4112.9,4112.8,0.02658124]
[1760311083481,7.48262579,4112.9,4112.8,0.02658124]
[1760311083867,7.48262579,4112.9,4110.4,3.64531]
[1760311083868,0.2966,4112.5,4110.4,3.64531]
[1760311084073,7.5497681,4111.3,4110.5,0.3015]
[1760311084368,3.23036738,4111.2,4110.6,0.7514]
[1760311084566,3.23036738,4111.2,4111.1,0.7514]
[1760311084771,3.7985681,4111.6,4111.2,0.43743]
[1760311084967,3.7985681,4111.6,4111.3,1.18881]
[1760311085163,4.3419681,4111.6,4111.5,0.4374]
[1760311085871,0.5434,4112.2,4112.0,0.43734]
[1760311086066,3.2078,4112.4,4111.8,1.09342]
[1760311086267,40.8,4112.3,4112.0,0.3015]
[1760311086471,40.8,4112.3,4112.2,1.18872]
[1760311086682,40.8,4112.3,4112.2,0.43732]
[1760311086980,40.8,4112.3,4112.2,1.18872]
[1760311087177,3.2078,4112.4,4112.2,1.18872]
[1760311087678,40.8,4112.4,4112.3,0.7514]
[1760311087885,3.21034607,4112.9,4112.4,0.7514]
[1760311088172,0.00254607,4112.9,4112.8,1.18866]
[1760311088478,6.07e-06,4112.9,4112.8,1.18866]
[1760311088677,0.68383,4115.0,4113.5,1.0529]
[1760311088678,7.0063681,4114.2,4113.5,1.0529]
[1760311088875,7.0063681,4114.2,4113.8,0.43714]
[1760311089075,0.5434,4114.1,4113.9,0.43713]
[1760311089682,0.54613243,4114.1,4113.9,0.43713]
[1760311089878,0.00273243,4114.1,4113.5,1.49007]
[1760311090080,4.3419681,4113.6,4112.6,3.9592]
[1760311090287,0.5434,4113.1,4112.8,0.43726]
[1760311090485,3.7985681,4113.0,4112.6,1.18867]
[1760311090675,6.88744171,4113.0,4112.6,1.18867]
[1760311090985,0.5434,4112.9,4112.6,1.18867]
[1760311091179,0.5434,4112.9,4112.7,0.43726]
[1760311091777,0.5434,4112.9,4112.5,0.43729]
[1760311092080,3.7985681,4113.0,4112.5,0.43729]
[1760311092476,0.43731,4112.4,4111.9,3.2078]
[1760311092674,0.5434,4112.0,4111.9,3.2078]
[1760311092980,3.7985681,4112.1,4111.6,0.43738]
[1760311093280,0.5434,4111.7,4111.1,0.43971709]
[1760311093485,3.7985681,4111.5,4111.1,0.00227709]
[1760311093784,0.5434,4111.4,4111.1,0.43970709]
[1760311093978,3.7985681,4111.5,4111.2,0.43742]
[1760311094178,0.5434,4111.3,4111.1,0.00227709]
[1760311094386,3.7985681,4111.3,4111.1,0.00227709]
[1760311094678,0.5434,4111.2,4111.1,0.43970709]
[1760311094980,0.0026229,4111.2,4111.1,1.19110709]
[1760311096174,0.0026229,4111.2,4111.1,0.75367709]
[1760311097783,2.9e-06,4111.2,4111.1,0.75367709]
[1760311098476,0.5434,4112.7,4111.7,1.09343]
[1760311098687,3.7512,4112.6,4112.3,0.43731]
[1760311098982,0.5434,4112.4,4112.0,0.43733]
[1760311099178,3.7985681,4112.3,4112.2,0.43732]
[1760311099379,4.3419681,4112.3,4112.1,0.43733]
[1760311099579,0.5434,4112.2,4112.1,0.43733]
[1760311099885,3.8009457,4112.3,4112.1,0.43733]
[1760311100079,3.8009457,4112.3,4112.1,1.18873]
[1760311100588,4.3443457,4112.3,4112.1,1.18873]
[1760311100779,4.3443457,4112.3,4112.1,0.43733]
[1760311100980,0.5434,4112.2,4112.1,0.43733]
[1760311101676,0.5434,4112.2,4111.8,3.2078]
[1760311101677,0.5391,4112.2,4111.8,3.2078]
[1760311101881,0.5391,4112.2,4111.3,3.2078]
[1760311101882,3.2078,4112.0,4111.3,3.2078]
[1760311102077,0.5391,4111.5,4111.4,0.43741]
[1760311102279,0.5391,4111.5,4111.2,0.43743]
[1760311102280,0.5391,4111.4,4111.2,0.43743]
[1760311102484,0.5391,4111.4,4111.2,1.22883]
[1760311102883,3.2078,4111.5,4111.3,0.43741]
[1760311103387,3.7985681,4111.6,4111.5,0.4374]
[1760311103587,3.7985681,4111.6,4111.5,1.2288]
[1760311104487,4.3376681,4111.6,4111.5,0.4374]
[1760311105883,0.43741,4111.4,4110.9,0.43745]
[1760311106084,0.5391,4111.1,4109.8,0.7914]
[1760311106392,0.5391,4110.0,4109.9,0.43757]
[1760311106983,0.5391,4110.0,4109.9,0.4394373]
[1760311107578,3.2078,4110.9,4110.0,0.3192]
[1760311107786,3.7469,4110.9,4110.6,0.43749]
[1760311108091,3.7469,4110.9,4109.9,1.0957773]
[1760311108092,0.5391,4110.6,4110.1,0.43759]
[1760311108293,3.7985681,4110.7,4109.9,0.0018673]
[1760311108294,0.5391,4110.3,4109.9,0.0018673]
[1760311108492,0.5391,4110.0,4109.9,0.0018673]
[1760311108681,0.6874,4110.0,4109.3,0.43767]
[1760311108887,0.5391,4109.4,4108.7,0.7914]
[1760311109085,3.7985681,4109.5,4108.0,0.57512549]
[1760311109086,3.2078,4109.0,4108.2,0.7914]
[1760311109288,41.3391,4109.0,4108.8,0.43772]
[1760311109680,41.34187729,4109.0,4108.9,2.18472928]
[1760311110186,0.00277729,4109.0,4108.9,2.97612928]
[1760311110789,0.00277729,4109.0,4108.9,2.18472928]
[1760311112094,0.00277729,4109.0,4108.9,2.97612928]
[1760311112297,0.00277729,4109.0,4108.9,2.18472928]
[1760311112493,3.76141178,4109.0,4108.9,2.18472928]
[1760311112697,10.76777988,4109.0,4108.9,2.18472928]
[1760311112992,0.00277729,4109.0,4108.9,2.97612928]
[1760311114382,0.00277729,4109.0,4108.9,2.18472928]
[1760311114383,4.34044539,4109.0,4108.9,2.18472928]
[1760311114589,7.68364489,4109.0,4108.9,2.18472928]
[1760311115897,7.44114489,4109.0,4108.9,2.18472928]
[1760311116091,3.64257679,4109.0,4108.9,2.18472928]
[1760311117692,0.00277729,4109.0,4108.9,2.97612928]
[1760311118988,3.2078,4110.2,4110.1,0.43755]
[1760311119595,3.2078,4110.2,4110.1,1.22895]
[1760311119787,3.2078,4110.7,4110.1,0.7914]
[1760311119988,0.5391,4109.9,4109.0,0.75686]
[1760311120188,0.1483,4110.0,4108.6,3.2078]
[1760311120189,0.5391,4109.3,4108.6,3.2078]
[1760311120387,3.7985681,4109.4,4108.9,2.62239928]
[1760311120592,3.14348744,4109.2,4108.9,2.18472928]
[1760311120788,0.5391,4109.1,4109.0,0.43766]
[1760311121191,3.76885261,4109.1,4109.0,0.43766]
[1760311122592,4.3376681,4109.4,4109.0,0.7914]
[1760311122799,4.3376681,4109.4,4109.3,0.43763]
[1760311123484,4.3376681,4109.4,4109.0,0.7914]
[1760311123691,4.3376681,4109.4,4108.9,2.18472928]
[1760311123692,0.5391,4109.0,4108.9,2.18472928]
[1760311123998,6.85820238,4109.0,4108.9,2.18472928]
[1760311124396,47.65820238,4109.0,4108.9,2.18472928]
[1760311125298,47.65820238,4109.0,4108.3,1.20583]
[1760311125600,3.7985681,4108.4,4108.3,0.43774]
[1760311125794,3.7985681,4108.4,4108.3,1.20584]
[1760311126400,3.7985681,4108.4,4108.3,1.20886224]
[1760311126604,40.8,4109.0,4108.9,1.20577]
[1760311126793,7.0063681,4110.4,4110.0,0.3046]
[1760311127098,3.19931583,4110.1,4110.0,0.3046]
[1760311127299,3.19931583,4110.1,4110.0,1.0727]
[1760311127596,0.0018654,4110.7,4110.6,1.20559]
[1760311127802,3.23511689,4110.1,4109.6,3.2078]
[1760311127994,3.7985681,4110.0,4109.9,0.4376]
[1760311128397,3.7985681,4110.0,4109.9,1.2057]
[1760311129504,3.2078,4110.3,4110.2,0.43757]
[1760311129703,3.2078,4110.3,4110.2,1.20567]
[1760311130599,3.1083959,4110.3,4110.2,0.7681]
[1760311130801,3.2078,4110.4,4110.3,0.43756]
[1760311131099,40.8018654,4110.7,4110.6,0.7681]
[1760311131301,0.0018654,4110.7,4110.6,1.20563]
[1760311133605,4.32623974,4112.1,4111.0,1.09371]
[1760311133606,3.2078,4111.4,4111.0,1.09371]
[1760311133806,3.2078,4111.4,4111.3,1.19356]
[1760311134410,3.2078,4111.4,4110.5,3.5124]
[1760311134411,10.72640809,4111.4,4110.5,1.0607]
[1760311134709,4.32623974,4110.7,4110.5,0.00263896]
[1760311135099,3.2078,4110.8,4110.6,0.7561]
[1760311135302,3.2078,4110.8,4110.7,0.7561]
[1760311135710,44.0078,4110.8,4110.7,0.7561]
[1760311135899,3.2078,4110.8,4110.7,0.7561]
[1760311136405,2.6548,4110.8,4110.7,0.7561]
[1760311136611,40.8,4111.3,4111.2,1.19357]
[1760311137002,0.00209352,4111.4,4111.3,0.7561]
[1760311138004,3.17803224,4111.4,4111.1,0.7561]
[1760311138212,4.32623974,4111.3,4111.2,1.19356]
[1760311138511,7.50217846,4111.3,4111.2,1.19356]
[1760311138712,3.17593872,4111.3,4111.2,1.19356]
[1760311139010,0.00209352,4111.4,4111.3,0.7561]
[1760311139312,3.12815135,4111.3,4111.2,0.7561]
[1760311139605,0.00209352,4111.4,4111.3,1.19356]
[1760311140609,3.11417624,4111.4,4111.1,0.43747]
[1760311140804,4.76370974,4111.2,4110.9,0.4375]
[1760311141006,3.2078,4111.0,4110.7,0.43751]
[1760311141207,3.2078,4111.0,4110.6,0.7561]
[1760311141408,3.2078,4111.0,4110.7,0.43751]
[1760311141409,3.10675976,4110.9,4110.7,0.43751]
[1760311142808,3.10675976,4110.9,4110.8,0.7561]
[1760311143014,3.2078,4111.0,4110.9,1.1936]
[1760311143414,6.40053168,4111.0,4110.8,0.4375]
[1760311143909,6.40053168,4111.0,4110.9,0.7561]
[1760311144114,3.2078,4111.0,4110.9,0.7561]
[1760311144513,2.6408229,4111.0,4110.9,0.7561]
[1760311145609,0.00209352,4111.4,4110.9,0.7561]
[1760311145811,0.00209352,4111.4,4111.3,1.19356]
[1760311146213,0.00209352,4111.4,4111.1,0.7561]
[1760311146519,0.00209352,4111.4,4111.3,0.7561]
[1760311149210,0.00209352,4111.4,4111.0,0.2919]
[1760311149416,4.32623974,4111.3,4111.2,0.7561]
[1760311149811,7.45793018,4111.3,4111.2,0.7561]
[1760311150215,0.43753,4110.6,4110.1,0.7561]
[1760311150419,3.2078,4110.6,4110.4,0.43755]
[1760311150717,3.2078,4110.6,4110.5,1.05063896]
[1760311151813,3.2078,4111.3,4111.0,0.2919]
[1760311152113,3.2078,4111.3,4111.1,0.7561]
[1760311152415,3.2078,4111.3,4111.2,1.19357]
[1760311156216,1.09321,4113.0,4111.0,0.2919]
[1760311156217,3.2078,4112.3,4112.1,0.7561]
[1760311157016,3.2078,4112.3,4112.2,1.19346]
[1760311157318,3.21051469,4112.3,4112.2,1.19346]
[1760311157519,0.00271469,4112.3,4112.2,1.19346]
[1760311159819,4.69e-06,4112.3,4112.2,1.19346]
[1760311160009,3.2078,4113.4,4113.3,1.19334]
[1760311160718,3.2078,4113.4,4113.0,0.2919]
[1760311160719,6.368692,4113.4,4113.2,0.7561]
[1760311160914,6.37086582,4113.4,4113.1,0.43726]
[1760311161116,0.43726,4113.1,4113.0,0.2919]
[1760311161320,0.4373,4112.8,4112.5,1.048]
[1760311161515,3.2078,4112.7,4112.6,0.753]
[1760311161716,0.43732,4112.6,4112.5,0.2919]
[1760311162111,3.58141923,4112.6,4112.5,1.0449]
[1760311162318,3.2078,4113.2,4113.0,0.3061]
[1760311162517,3.2078,4113.2,4113.1,0.753]
[1760311163823,6.3794218,4113.2,4113.0,0.3061]
[1760311164132,6.8166818,4113.2,4113.0,0.3061]
[1760311164333,6.3794218,4113.2,4113.1,0.753]
[1760311165326,47.1794218,4113.2,4113.1,0.753]
[1760311166927,3.2078,4113.2,4113.1,0.753]
[1760311167119,0.00217382,4113.4,4113.2,0.43725]
[1760311167426,0.00217382,4113.4,4113.3,0.753]
[1760311168524,0.00217382,4113.4,4112.5,3.4997]
[1760311168525,3.16294272,4113.4,4112.5,0.2919]
[1760311168726,3.64509,4112.9,4112.6,1.19031]
[1760311168925,3.64509,4112.9,4112.7,0.753]
[1760311169126,3.1367892,4112.8,4112.7,0.753]
[1760311169824,3.2078,4112.9,4112.7,0.753]
[1760311170129,3.2078,4112.9,4112.8,0.753]
[1760311173434,3.2078,4112.9,4112.1,0.753]
[1760311173435,0.43736,4112.3,4112.1,0.753]
[1760311173732,3.64516,4112.3,4112.1,0.753]
[1760311174326,0.43736,4112.2,4112.0,0.2919]
[1760311174521,0.43736,4112.2,4111.6,0.753]
[1760311174522,3.21539246,4112.2,4111.6,0.753]
[1760311174726,3.21539246,4112.2,4111.5,0.2919]
[1760311174727,0.43742,4111.6,4111.5,0.2919]
[1760311175126,3.64035721,4111.6,4111.5,0.2919]
[1760311175527,3.64035721,4111.6,4110.2,0.753]
[1760311175528,0.43753,4110.6,4110.2,0.753]
[1760311175728,3.2078,4110.6,4110.5,1.06173896]